[Event "16th Serbian Championship 2022"]
[Site "Bajina Basta"]
[Date "2022.12.10"]
[Round "5.3"]
[White "Perunovic, Miodrag"]
[Black "Djordjevic, Vuk"]
[Result "1/2-1/2"]
[ECO "C18"]
[WhiteElo "2417"]
[BlackElo "2394"]
[Annotator "TA"]
[PlyCount "156"]
[EventDate "2022.12.06"]
[EventType "tourn"]
[EventCountry "SRB"]
[SourceTitle "playchess.com"]
[Source "ChessBase"]
[SourceQuality "1"]
[TimeControl "40/5400+30:1800+30"]

{[%evp 17,156,19,20,0,0,0,0,0,5,19,37,21,1,28,19,19,14,20,59,66,81,35,35,13,54,69,74,87,106,59,45,36,198,187,211,200,281,275,243,183,412,383,140,43,49,48,43,43,45,45,45,45,91,83,166,160,186,145,217,198,206,123,123,123,141,72,71,75,76,41,54,30,30,30,40,27,30,30,31,29,31,31,31,31,31,30,33,33,47,20,31,12,12,11,12,12,10,8,41,41,82,16,16,16,19,16,16,17,17,8,8,8,12,8,8,8,23,20,27,27,27,37,54,27,27,28,36,0,0,0,0,0,0,0,0,0,0,0,0,0,0]} 1. e4 {[%emt 0:04:33]} e6 {[%emt 0:00:37]} 2. d4 {[%emt 0:00:06]} d5 {[%emt 0:00:07]} 3. Nc3 {[%emt 0:00:07]} Bb4 {[%emt 0:00:25]} 4. e5 {[%emt 0:01:06]} c5 {[%emt 0:00:24]} 5. a3 {[%emt 0:00:03]} Bxc3+ {[%emt 0:00:10]} 6. bxc3 {[%emt 0:00:07]} Ne7 {[%emt 0:00:15]} 7. Qg4 {[%emt 0:00:11]} Qc7 {[%emt 0:00:14]} 8. Qxg7 {[%emt 0:00:10]} Rg8 {[%emt 0:00:12]} 9. Qxh7 {[%emt 0:00:03]} cxd4 {[%emt 0:00:16]} 10. Qd3 {[%emt 0:01:22] C18: French: 3 Nc3 Bb4: Main line: 7 h4 and 7 Qg4.} (10. Ne2 $5 {[%cal Rc3d4]}) 10... Qxe5+ {[%emt 0:01:37]} 11. Ne2 $1 {[%emt 0:00:12][%cal Bg1e2,Be2c3,Bc3b5,Bb5d6][%mdl 32]} dxc3 {[%emt 0:00:52]} 12. Qxc3 {[%emt 0:00:04]} Qxc3+ {[%emt 0:02:29]} 13. Nxc3 {[%emt 0:00:04]} Nbc6 {[%emt 0:00:37]} 14. h4 {[%emt 0:00:03][%cal Bh2h4,Bh4h5,Bh5h6,Bh6h7][%mdl 32]} (14. Rb1 $5 {[%cal Rh2h4]}) 14... f6 {[%emt 0:19:13] [#]} 15. h5 $146 {[%emt 0:00:26]} ({Predecessor:} 15. Rb1 b6 16. Bb2 e5 17. Rd1 Be6 18. Bb5 O-O-O 19. Kf1 Kb7 20. Ne2 a6 21. Bxc6+ Kxc6 {0-1 (63) Liang,J (2353)-Wheeler,C (2383) Charlotte 2020}) 15... e5 {[%emt 0:06:12]} 16. Nb5 {[%emt 0:04:33] Strongly threatening Nc7+.} Kf7 {[%emt 0:07:44]} 17. c4 {[%emt 0:05:00]} d4 {[%emt 0:13:15]} 18. c5 {[%emt 0:00:32]} Be6 {[%emt 0:05:34] Inhibits Bc4.} 19. Rb1 {[%emt 0:01:46]} (19. h6 $16 {aiming for Nd6+.} Rgd8 20. Nc7 (20. Nd6+ Kg8 $14)) 19... Rab8 $14 {[%emt 0:07:52]} 20. h6 {[%emt 0:00:20] Nd6+ is the strong threat.} Rgd8 {[%emt 0:01:44]} (20... Kg6 {feels hotter.} 21. h7 Rh8 22. Nc7 Bf5) 21. Nd6+ {[%emt 0:07:28]} Kg8 {[%emt 0:02:15]} 22. h7+ {[%emt 0:00:43]} (22. Nxb7 Rd7 23. Ba6 Nd8 24. h7+ Kh8 $17) 22... Kh8 {[%emt 0:07:18]} 23. g4 {[%emt 0:14:34]} (23. Rxb7 Rxb7 24. Nxb7 Rb8 $11) (23. Nxb7 Rd7 24. Ba6 Nd8 $17) ({Better is} 23. Rh6 $16 Nd5 24. g3 (24. Nxb7 Rd7 $17) (24. Rxb7 Na5 $15)) 23... b6 {[%emt 0:08:26]} (23... Bxg4 $2 24. Nf7+ (24. Rxb7 Be6 $14) 24... Kg7 25. Nxd8 Rxd8 26. Rg1 $18) 24. g5 {[%emt 0:01:27]} Rf8 {[%emt 0:07:21]} (24... bxc5 $2 25. Rxb8 Rxb8 26. gxf6 $18) (24... Nf5 $1 $14) 25. cxb6 $18 {[%emt 0:07:56]} axb6 {[%emt 0:01:35]} 26. Bd3 $1 {[%emt 0:10:04]} f5 {[%emt 0:02:02]} (26... Ba2 {was necessary.}) 27. Rh6 {[%emt 0:00:07]} Bd5 {[%emt 0:00:12]} 28. Bb2 {[%emt 0:01:44][%cal Of2f4]} Kg7 $2 {[%emt 0:03:05]} (28... f4 29. Rc1 Rbd8) 29. f4 {[%emt 0:01:35]} Rh8 $2 {[%emt 0:02:08]} (29... Be4 $18) 30. Rc1 {[%emt 0:23:42] Chess con chili. White is much more active.} ({White should play} 30. Bxf5 $16 Rhf8 31. Rc1 $1) 30... Rxh7 $14 {[%emt 0:00:44]} 31. Nxf5+ {[%emt 0:02:03]} Nxf5 {[%emt 0:00:08]} 32. Rxh7+ {[%emt 0:00:05]} Kxh7 {[%emt 0:00:02]} 33. Bxf5+ {[%emt 0:00:10]} Kg7 {[%emt 0:00:01]} 34. Be6 {[%emt 0:07:49]} Be4 {[%emt 0:01:42]} (34... Bxe6 $14 {was preferrable.} 35. Rxc6 Re8) 35. Bd7 $16 {[%emt 0:04:22]} Ne7 {[%emt 0:00:38]} (35... Na5 $16 {was worth a try.}) 36. fxe5 $18 {[%emt 0:00:28]} Kg6 {[%emt 0:00:22]} 37. Bxd4 {[%emt 0:00:16]} Nf5 {[%emt 0:00:38] Inhibits e6.} (37... Rh8 $16 {keeps fighting.} 38. e6 Rh1+ 39. Kd2 Rxc1) 38. Bf2 {[%emt 0:01:23]} Kxg5 {[%emt 0:01:04]} 39. Rc4 {[%emt 0:00:36]} (39. Kd2 $18) 39... Bd5 $16 {[%emt 0:00:00] Prevents e6.} 40. Rb4 {[%emt 0:01:10][%cal Oa3a4]} Rb7 {[%emt 0:00:19]} 41. e6 {[%emt 0:03:23]} ({White should try} 41. Bb5) 41... b5 {[%emt 0:06:29]} 42. Kd2 {[%emt 0:07:19]} ({Don't take} 42. Rxb5 Rxb5 43. Bxb5 Bxe6) (42. Bxb5 {simplifies} Kf6 43. Be2 Rxb4 44. axb4 Kxe6 45. Kd2) 42... Kf6 {[%emt 0:04:31]} 43. Kc3 {[%emt 0:01:34]} ({Of course not} 43. Rxb5 Rxb5 44. Bxb5 Nd6 $11) (43. Bc5 {simplifies} Bxe6 44. Bxb5 Rc7 45. Bb6) 43... Rc7+ {[%emt 0:05:05]} 44. Kb2 {[%emt 0:00:33]} (44. Kd3 $5 {[%cal Rf2b6]}) 44... Bxe6 {[%emt 0:02:59]} 45. Bxb5 {[%emt 0:00:02]} Rh7 {[%emt 0:01:18]} 46. Bb6 {[%emt 0:07:20]} Rh2+ {[%emt 0:02:04]} 47. Kc1 {[%emt 0:00:04]} Rh1+ {[%emt 0:00:37]} 48. Kd2 {[%emt 0:00:09]} Rh2+ {[%emt 0:00:09]} 49. Ke1 {[%emt 0:00:22]} Rh1+ {[%emt 0:01:57]} 50. Kf2 {[%emt 0:00:09]} Rh2+ {[%emt 0:00:03]} 51. Kg1 {[%emt 0:03:45]} Ra2 {[%emt 0:00:52]} 52. a4 {[%emt 0:00:01]} Bd5 {[%emt 0:01:14]} 53. Rg4 {[%emt 0:00:56]} Nd6 {[%emt 0:04:49]} 54. Bd3 {[%emt 0:01:17]} Ra3 {[%emt 0:01:14]} 55. Bh7 {[%emt 0:06:19]} Ra1+ {[%emt 0:03:19]} 56. Kf2 {[%emt 0:00:09]} Ra2+ {[%emt 0:00:08]} 57. Ke1 {[%emt 0:00:24] Threatening Rg6+.} Ra1+ {[%emt 0:01:20]} 58. Kd2 {[%emt 0:01:03] And now Bd4+ would win.} Ke6 {[%emt 0:00:13]} (58... Nc4+ $2 {[#]} 59. Rxc4 $1 {[%mdl 512]} Ra2+ 60. Rc2 Rxa4 61. Ke3 $18) 59. Bd3 {[%emt 0:02:42]} (59. a5 $16) 59... Ra2+ $11 {[%emt 0:00:36]} 60. Kc1 {[%emt 0:00:40]} Ra3 {[%emt 0:00:42] Against a5} 61. Kc2 {[%emt 0:01:12]} Ra2+ {[%emt 0:00:37]} 62. Kb1 {[%emt 0:01:01]} Ra3 {[%emt 0:00:02]} 63. Bc2 {[%emt 0:01:16]} Nc4 {[%emt 0:00:56]} 64. Bd4 {[%emt 0:00:35]} Rf3 {[%emt 0:00:45]} 65. Rg6+ {[%emt 0:00:14]} Ke7 {[%emt 0:00:26]} 66. Bc5+ {[%emt 0:01:00] A strong pair of Bishops.} Kf7 {[%emt 0:00:05] Threatens to win with ...Rf1+.} 67. Rg1 {[%emt 0:00:11] Prevents Rf1+.} Be4 {[%emt 0:01:01][%mdl 64] Decoy} 68. Bxe4 {[%emt 0:00:32]} Nd2+ {[%emt 0:00:01]} 69. Kb2 {[%emt 0:00:18]} Nxe4 $14 {[%emt 0:00:05][%mdl 4096] Endgame KRB-KRN} 70. Bb4 {[%emt 0:00:04] Hoping for Re1.} Ke6 $1 {[%emt 0:00:45]} 71. Rd1 {[%emt 0:00:01]} Nf2 {[%emt 0:00:49] Against a5} 72. Rd8 {[%emt 0:00:25]} Nd3+ {[%emt 0:00:38] The position is equal.} 73. Kc3 {[%emt 0:00:24]} Nc5+ {[%emt 0:00:13]} 74. Kc4 {[%emt 0:00:17]} Nxa4 {[%emt 0:00:11]} 75. Rd6+ {[%emt 0:00:20]} Ke5 {[%emt 0:00:25]} 76. Rd2 {[%emt 0:00:31]} Nb6+ {[%emt 0:00:08]} 77. Kc5 {[%emt 0:00:09]} Na4+ {[%emt 0:00:02]} 78. Kc6 {[%emt 0:01:06]} Nc3 {[%emt 0:02:53] White really could win this.   Weighted Error Value: White=0.18 (very precise) /Black=0.22 (precise)} 1/2-1/2

[Event "16th Serbian Championship 2022"]
[Site "Bajina Basta"]
[Date "2022.12.10"]
[Round "5.5"]
[White "Indjic, Aleksandar"]
[Black "Radovanovic, Nikola"]
[Result "1-0"]
[ECO "A62"]
[WhiteElo "2631"]
[BlackElo "2414"]
[Annotator "TA"]
[PlyCount "65"]
[EventDate "2022.12.06"]
[EventType "tourn"]
[EventCountry "SRB"]
[SourceTitle "playchess.com"]
[Source "ChessBase"]
[SourceQuality "1"]
[TimeControl "40/5400+30:1800+30"]

{[%evp 25,65,25,56,0,0,0,20,0,0,12,6,8,58,24,33,40,49,48,92,64,164,27,399,384,727,742,726,646,718,681,29975,29977,29976,29977,29976,29977,29986,29986,29992,29993,29997,29998]} 1. d4 {[%emt 0:00:46]} Nf6 {[%emt 0:02:20]} 2. c4 {[%emt 0:00:18]} g6 {[%emt 0:00:12]} 3. g3 {[%emt 0:00:08]} Bg7 {[%emt 0:00:37]} 4. Bg2 {[%emt 0:00:08]} O-O {[%emt 0:00:35]} 5. Nc3 {[%emt 0:00:08]} d6 {[%emt 0:00:45]} 6. Nf3 {[%emt 0:00:08]} c5 {[%emt 0:02:04]} 7. d5 {[%emt 0:00:51]} a6 {[%emt 0:00:39]} 8. a4 {[%emt 0:00:29]} e6 {[%emt 0:00:17]} 9. O-O {[%emt 0:00:09]} exd5 {[%emt 0:00:10]} 10. cxd5 {[%emt 0:00:07]} Re8 {[%emt 0:01:48]} 11. Bf4 {[%emt 0:03:54]} Ne4 {[%emt 0:04:09]} 12. Nxe4 {[%emt 0:01:17]} Rxe4 {[%emt 0:00:05]} 13. Nd2 {[%emt 0:00:07]} Rb4 {[%emt 0:10:07]} 14. b3 {[%emt 0:00:55] A62: Modern Benoni: Fianchetto Variation without early ...Nbd7.} g5 $11 {[%emt 0:08:33]} 15. Be3 {[%emt 0:00:23]} Bf5 {[%emt 0:00:10]} 16. Nc4 {[%emt 0:14:35] Hoping for Ra2. The position is equal.} Bxa1 {[%emt 0:08:13]} 17. Qxa1 {[%emt 0:00:20] [#]} Rxb3 $146 {[%emt 0:00:09]} ({Predecessor:} 17... b5 18. axb5 Rxb3 19. h4 h6 20. hxg5 hxg5 21. f4 g4 22. Kf2 axb5 23. Qxa8 bxc4 24. Ra1 Qf6 25. Bc1 Qc3 26. e3 Bb1 {0-1 (26) Sanikidze,S (1876)-Khomeriki,N (2347) Tbilisi 2017}) 18. Bd2 {[%emt 0:00:03]} a5 {[%emt 0:14:44]} ({Black should play} 18... Bg6 $11) 19. e4 $14 {[%emt 0:10:25]} Bg6 {[%emt 0:01:08][%cal Ob3b4]} 20. f4 {[%emt 0:03:27][%cal Bf2f4,Bf4f5,Bf5f6][%mdl 32] Qd1 is the strong threat.} Rb4 {[%emt 0:18:34]} 21. Bxb4 {[%emt 0:11:33]} axb4 {[%emt 0:01:01] [#]} 22. Qd1 $1 {[%emt 0:00:06] Against b5. Threatens to win with f5. White is much more active.} h6 {[%emt 0:04:07] [#]} (22... gxf4 $14 23. gxf4 f6) 23. h4 {[%emt 0:18:56]} ({White has to play} 23. e5 $1 $18) 23... Ra6 $2 {[%emt 0:03:01][%mdl 8192] Loses the game.} (23... gxh4 $11 24. f5 Bh7) 24. hxg5 $18 {[%emt 0:03:24]} hxg5 $2 {[%emt 0:00:08]} (24... Nd7 25. gxh6 (25. f5 Bh7 $14) 25... Qf8) 25. f5 {[%emt 0:00:38]} Bh7 {[%emt 0:00:18]} 26. f6 {[%emt 0:00:08]} Nd7 {[%emt 0:04:29]} 27. Qh5 {[%emt 0:00:28]} Ne5 {[%emt 0:04:35]} 28. Nxe5 {[%emt 0:01:20] White mates.} dxe5 {[%emt 0:00:08]} 29. Qxg5+ {[%emt 0:00:04]} Bg6 {[%emt 0:00:09]} 30. Bh3 {[%emt 0:00:15]} Kh7 {[%emt 0:05:09]} 31. Rf2 {[%emt 0:00:36]} Rxa4 {[%emt 0:01:48]} 32. Rh2 {[%emt 0:00:09]} Kg8 {[%emt 0:01:17] [#]} 33. Qxg6+ $3 {[%emt 0:00:06][%mdl 576] Back Rank.   Weighted Error Value: White=0.12 (very precise) /Black=0.78} 1-0

[Event "16th Serbian Championship 2022"]
[Site "Bajina Basta"]
[Date "2022.12.11"]
[Round "6.1"]
[White "Martic, Ivan"]
[Black "Radovanovic, Nikola"]
[Result "1/2-1/2"]
[ECO "A36"]
[WhiteElo "2270"]
[BlackElo "2414"]
[Annotator "TA"]
[PlyCount "81"]
[EventDate "2022.12.06"]
[EventType "tourn"]
[EventCountry "SRB"]
[SourceTitle "playchess.com"]
[Source "ChessBase"]
[SourceQuality "1"]
[TimeControl "40/5400+30:1800+30"]

{[%evp 21,81,0,6,0,15,4,37,23,36,34,51,60,72,52,91,47,123,126,117,107,98,46,131,152,145,22,8,-2,-6,-12,-38,-33,120,112,189,68,79,-277,-275,-264,-276,-277,-161,-277,-273,-297,-277,-253,0,0,162,0,0,0,0,0,0,0,0,-8,-8,-8]} 1. c4 {[%emt 0:00:06]} Nf6 {[%emt 0:00:34]} 2. Nc3 {[%emt 0:00:13]} g6 {[%emt 0:00:07]} 3. g3 {[%emt 0:01:26]} Bg7 {[%emt 0:00:10]} 4. Bg2 {[%emt 0:00:06]} O-O {[%emt 0:00:24]} 5. e4 {[%emt 0:00:15]} d6 {[%emt 0:01:37]} 6. d3 {[%emt 0:00:16]} c5 {[%emt 0:00:37]} 7. Nge2 {[%emt 0:00:17]} Nc6 {[%emt 0:01:01]} 8. O-O {[%emt 0:00:17]} a6 {[%emt 0:01:16]} 9. a4 {[%emt 0:00:23]} Rb8 {[%emt 0:00:57]} 10. h3 {[%emt 0:00:18]} Ne8 {[%emt 0:00:57]} 11. Be3 {[%emt 0:00:15]} Bd7 {[%emt 0:01:25]} 12. d4 {[%emt 0:01:01] A36: Symmetrical English vs ...g6: 4 Bg2 Bg7.} b6 {[%emt 0:00:38]} 13. f4 {[%emt 0:00:22][%cal Bf2f4,Bf4f5][%mdl 32]} Nc7 {[%emt 0:02:37] [#]} (13... Qc8 $5 {[%cal Rd7h3]}) 14. f5 $146 {[%emt 0:00:18] White is slightly better.} ({Predecessor:} 14. b3 e5 15. dxe5 dxe5 16. Nd5 Nxd5 17. cxd5 Nd4 18. Rc1 a5 19. Nxd4 cxd4 20. Bd2 {0-1 (50) Sadikhov,U (2490)-Radovanovic,N (2395) Veliko Gradiste 2021}) 14... cxd4 {[%emt 0:03:48]} 15. Nxd4 {[%emt 0:00:07]} Ne5 {[%emt 0:00:49]} 16. Qe2 {[%emt 0:06:30]} Qe8 {[%emt 0:06:48]} 17. b4 {[%emt 0:13:17][%cal Bb2b4,Bb4b5][%mdl 32]} Qc8 {[%emt 0:07:36]} 18. b5 {[%emt 0:02:17]} Re8 {[%emt 0:08:59]} (18... e6 $14) 19. Rac1 $16 {[%emt 0:12:55]} Qd8 {[%emt 0:14:12]} 20. g4 {[%emt 0:08:06]} e6 {[%emt 0:01:37]} 21. g5 {[%emt 0:09:31]} (21. fxg6 $16 fxg6 22. Nf3) 21... Rc8 {[%emt 0:14:43]} ({Better is} 21... axb5 $14 22. axb5 (22. cxb5 exf5 23. exf5 d5 $14) 22... exf5) 22. f6 $1 {[%emt 0:05:35]} Bf8 {[%emt 0:00:15]} 23. Nd1 {[%emt 0:10:02] White has more active pieces. The black rooks are badly placed.} (23. Rfe1 $16) 23... d5 $1 $11 {[%emt 0:03:18]} 24. cxd5 {[%emt 0:04:34]} (24. Nb2 {looks sharper.} axb5 25. cxb5 dxe4 26. Bf2) 24... exd5 {[%emt 0:00:09]} 25. exd5 {[%emt 0:00:23]} axb5 {[%emt 0:00:18]} 26. axb5 {[%emt 0:12:05] [#]} Bc5 $2 {[%emt 0:08:00]} (26... Nxd5 $1 $15 27. Bxd5 Rxc1 28. Bxc1 Bxh3) 27. Nc6 $1 $16 {[%emt 0:00:45]} Nxc6 {[%emt 0:03:38]} (27... Bxc6 $16 28. dxc6 Bd4) 28. dxc6 {[%emt 0:05:21]} (28. bxc6 $18 Bf5 29. Rxc5 bxc5 30. Qc4) 28... Bf5 $14 {[%emt 0:00:08]} 29. Rxf5 {[%emt 0:04:22][%mdl 8192]} gxf5 $19 {[%emt 0:00:36]} 30. Rxc5 {[%emt 0:02:56]} bxc5 {[%emt 0:00:11]} 31. b6 {[%emt 0:00:53]} Nd5 {[%emt 0:01:03]} (31... f4 $142 32. bxc7 Qd6) 32. b7 {[%emt 0:00:35]} (32. c7 $142 Qd7 33. Bxd5 Qxd5 34. Qh5) 32... Rxc6 {[%emt 0:08:36]} 33. b8=Q {[%emt 0:00:19]} Qxb8 {[%emt 0:00:05]} 34. Bxd5 {[%emt 0:00:06]} Qg3+ $2 {[%emt 0:00:08]} (34... Rd6 $1 $19 {[%cal Rd6d5]} 35. Qg2 Rxd5 $1 {[%mdl 512]} 36. Qxd5 Rd8) 35. Kf1 $1 $11 {[%emt 0:00:43]} Rce6 $2 {[%emt 0:00:30] [#]} 36. Bxe6 $2 {[%emt 0:00:19] Dancing on a razor blade. This pair of bishops is nice.} (36. Qh5 $1 $18 Qd6 37. Nf2 (37. Bxe6 Rxe6 38. Kg2 c4 $14) (37. Qh6 Qf8 $16)) 36... Qxh3+ {[%emt 0:03:19] The position is equal.} 37. Qg2 {[%emt 0:00:34]} Qxg2+ {[%emt 0:00:15]} 38. Kxg2 {[%emt 0:00:04]} Rxe6 {[%emt 0:00:06]} 39. Kf3 {[%emt 0:01:07]} h6 {[%emt 0:01:10]} 40. Kf4 {[%emt 0:00:31]} c4 {[%emt 0:03:15] And now ...Rd6 would win.} 41. gxh6 {[%emt 0:02:51] Never resign too early!   Weighted Error Value: White=0.41/Black=0.41} (41. Kxf5 $2 {too greedy.} c3 42. Bf4 c2 $19) 1/2-1/2

[Event "16th Serbian Championship 2022"]
[Site "Bajina Basta"]
[Date "2022.12.11"]
[Round "6.2"]
[White "Kovacevic, Aleksandar"]
[Black "Indjic, Aleksandar"]
[Result "1/2-1/2"]
[ECO "C54"]
[WhiteElo "2470"]
[BlackElo "2631"]
[Annotator "TA"]
[PlyCount "69"]
[EventDate "2022.12.06"]
[EventType "tourn"]
[EventCountry "SRB"]
[SourceTitle "playchess.com"]
[Source "ChessBase"]
[SourceQuality "1"]
[TimeControl "40/5400+30:1800+30"]

{[%evp 10,69,43,25,45,43,51,45,35,34,41,45,40,20,36,26,40,29,57,33,53,0,0,0,8,0,0,0,0,0,0,0,0,0,0,0,0,0,0,0,0,0,7,0,0,0,15,17,24,29,18,20,29,26,17,19,39,0,0,0,64,0]} 1. e4 {[%emt 0:00:12]} e5 {[%emt 0:01:07]} 2. Nf3 {[%emt 0:00:10]} Nc6 {[%emt 0:00:08]} 3. Bc4 {[%emt 0:00:35]} Nf6 {[%emt 0:00:11]} 4. d3 {[%emt 0:00:22]} Bc5 {[%emt 0:01:58]} 5. c3 {[%emt 0:00:21]} h6 {[%emt 0:02:54]} 6. b4 {[%emt 0:01:06]} Be7 {[%emt 0:00:18] C54: Giuoco Piano: 4 c3 Nf6, main lines with 5 d4 and 5 d3.} 7. O-O {[%emt 0:01:25] Nowadays more popular than 7.b5.} d6 {[%emt 0:00:51]} 8. Bb2 {[%emt 0:02:55]} O-O {[%emt 0:00:28]} 9. Nbd2 {[%emt 0:00:47] [#]} a5 $146 {[%emt 0:03:54]} ({Predecessor:} 9... Bg4 10. h3 Bh5 11. Qc2 a6 12. a4 Rb8 13. Rfe1 b5 14. axb5 axb5 15. Bd5 Qd7 {1-0 (26) Huo,D (1320)-Wusterack,P (990) Magdeburg 2015}) 10. b5 {[%emt 0:03:45]} Nb8 {[%emt 0:00:06]} 11. d4 {[%emt 0:04:24]} Nbd7 {[%emt 0:00:18]} 12. Bb3 {[%emt 0:05:00]} Re8 {[%emt 0:00:24]} 13. a4 {[%emt 0:01:35]} Bf8 {[%emt 0:00:12]} 14. Re1 {[%emt 0:03:12]} c6 {[%emt 0:00:14]} 15. bxc6 {[%emt 0:10:14]} (15. h3 $14) 15... bxc6 $11 {[%emt 0:00:14]} 16. Ba3 {[%emt 0:00:15]} Qc7 {[%emt 0:00:22]} 17. Qc2 {[%emt 0:02:18]} Ba6 {[%emt 0:04:42]} 18. Bc4 {[%emt 0:13:16]} Bxc4 {[%emt 0:22:37]} 19. Nxc4 {[%emt 0:00:11]} exd4 {[%emt 0:00:17]} 20. cxd4 {[%emt 0:09:10]} Rxe4 {[%emt 0:00:26]} 21. Rxe4 {[%emt 0:01:18]} Nxe4 {[%emt 0:00:07]} 22. Qxe4 {[%emt 0:00:55] [#] And now Qc2 would win.} d5 {[%emt 0:00:07]} 23. Qc2 {[%emt 0:02:17]} dxc4 {[%emt 0:00:07]} 24. Bxf8 {[%emt 0:03:46]} Rxf8 {[%emt 0:00:16]} 25. Qxc4 {[%emt 0:00:28]} Rb8 {[%emt 0:00:13][%cal Bf8b8,Bb8b4,Bb4d4,Bd4d6][%mdl 32]} 26. g3 {[%emt 0:03:03]} Rb4 {[%emt 0:00:31]} 27. Qc2 {[%emt 0:01:24]} Qb7 {[%emt 0:03:54][%cal Oc6c5]} 28. Re1 {[%emt 0:07:14] [#] Inhibits c5. Threatens to win with Re8+.} Nf6 {[%emt 0:01:10] Inhibits Re8+.} 29. Ne5 {[%emt 0:00:37]} Rxd4 {[%emt 0:01:16][%cal Oc6c5]} 30. Nxc6 {[%emt 0:01:04]} ({Of course not} 30. Qxc6 Qxc6 31. Nxc6 Rxa4 $17) 30... Rd6 {[%emt 0:00:10]} 31. Nxa5 {[%emt 0:11:18]} Qb4 {[%emt 0:03:02]} 32. Re5 {[%emt 0:00:09]} Qd4 $1 {[%emt 0:02:15]} 33. Re1 {[%emt 0:02:57] Prevents Qa1.} (33. Rb5 $5 {[%cal Rb5b8]} Qd1+ 34. Qxd1 Rxd1+ 35. Kg2 $16) 33... Qb4 {[%emt 0:08:48]} 34. Re5 {[%emt 0:00:05]} ({White should try} 34. Qc8+ $11 Kh7 35. Qc2+ g6 36. Re7 Qxa5 37. Rxf7+ Kh8 38. Qxg6 Qe1+ 39. Kg2 Qe4+ 40. Qxe4 Nxe4 41. Re7) 34... Qd4 $1 $14 {[%emt 0:00:41]} 35. Re1 {[%emt 0:02:21] Weighted Error Value: White=0.07 (flawless) /Black=0.04 (flawless)} ({Better is} 35. Rc5 $14) 1/2-1/2

[Event "16th Serbian Championship 2022"]
[Site "Bajina Basta"]
[Date "2022.12.11"]
[Round "6.3"]
[White "Djordjevic, Vuk"]
[Black "Ivanisevic, Ivan"]
[Result "0-1"]
[ECO "B20"]
[WhiteElo "2394"]
[BlackElo "2533"]
[Annotator "TA"]
[PlyCount "38"]
[EventDate "2022.12.06"]
[EventType "tourn"]
[EventCountry "SRB"]
[SourceTitle "playchess.com"]
[Source "ChessBase"]
[SourceQuality "1"]
[TimeControl "40/5400+30:1800+30"]

{[%evp 9,37,-10,-20,-57,-19,-48,-27,-31,-16,-56,-56,-65,-29,-52,-15,-64,-47,-105,-95,-133,-139,-362,-338,-785,-781,-1172,-1166,-1152,-1144,-29999]} 1. e4 {[%emt 0:02:25]} c5 {[%emt 0:00:05]} 2. g3 {[%emt 0:00:21]} Nc6 {[%emt 0:05:45]} 3. Bg2 {[%emt 0:00:18]} Nf6 {[%emt 0:00:10]} 4. f4 {[%emt 0:08:27]} d5 {[%emt 0:02:03] [#]} 5. exd5 $146 {[%emt 0:06:12]} ({Predecessor:} 5. e5 Bg4 6. Nf3 Nd7 7. h3 Bxf3 8. Bxf3 e6 9. d3 Nd4 10. Bg2 Nf5 11. Qf3 Be7 {0-1 (29) Suarez Gomez,P (1740)-Sanroman Costas,M (1869) Padron 2022}) 5... Nxd5 {[%emt 0:01:21]} (5... Bg4 {keeps more tension.} 6. Nf3 Qxd5 7. Nc3 Qe6+) 6. Ne2 {[%emt 0:02:17] B20: Sicilian: Unusual White 2nd moves.} Bf5 {[%emt 0:09:19]} 7. d3 {[%emt 0:14:44]} e6 {[%emt 0:00:49][%cal Oc5c4]} 8. Nbc3 {[%emt 0:12:26] Against c4. Black has an edge.} c4 {[%emt 0:05:26]} 9. Nxd5 {[%emt 0:09:50]} (9. dxc4 {seems wilder.} Nxc3 10. Nxc3 Qb6 11. Na4) 9... exd5 {[%emt 0:00:36]} 10. O-O {[%emt 0:00:11]} cxd3 {[%emt 0:00:53]} 11. cxd3 {[%emt 0:01:12]} Bc5+ {[%emt 0:00:31]} 12. Kh1 {[%emt 0:09:07]} (12. d4 $11 {was preferrable.} Bb6 13. Be3) 12... O-O $15 {[%emt 0:00:19]} 13. a3 {[%emt 0:08:26]} (13. Nc3 $15) 13... Re8 $17 {[%emt 0:03:44] Black is more active.} 14. Nc3 {[%emt 0:00:48] [#]} Qd7 $1 {[%emt 0:00:40]} 15. Bxd5 $2 {[%emt 0:03:23] This costs White the game.} (15. Bd2 $17) 15... Rad8 {[%emt 0:01:57]} 16. Be4 $2 {[%emt 0:02:17] [#]} (16. Bg2 Bxd3 17. Rf3) 16... Rxe4 $1 $19 {[%emt 0:01:33][%mdl 576]} 17. dxe4 {[%emt 0:01:18]} (17. Nxe4 Bxe4+) 17... Qxd1 {[%emt 0:01:21][%mdl 64] Deflection} 18. Rxd1 {[%emt 0:00:09]} Rxd1+ {[%emt 0:00:06]} 19. Nxd1 {[%emt 0:00:25]} Bxe4# {[%emt 0:00:06] Weighted Error Value: White=1.49/Black=0.16 (very precise)} 0-1